[Event "34rd NATO Championship 2024"]
[Site "Rhodes"]
[Date "2024.10.22"]
[Round "2.6"]
[White "Helbig, Mark"]
[Black "Duren, Andrew"]
[Result "1-0"]
[ECO "D17"]
[WhiteElo "2280"]
[BlackElo "2015"]
[Annotator "RC"]
[PlyCount "119"]
[EventDate "2024.09.18"]
[EventType "swiss"]
[EventCountry "GRE"]
[SourceTitle "playchess.com"]
[Source "ChessBase"]
[SourceQuality "1"]
[TimeControl "5400+30"]

1. d4 {[%emt 0:00:08]} d5 {[%emt 0:00:10]} 2. c4 {[%emt 0:00:41]} c6 {[%emt 0:00:07]} 3. Nf3 {[%emt 0:00:20]} Nf6 {[%emt 0:00:10]} 4. Nc3 {[%emt 0:01:26]} dxc4 {[%emt 0:00:16]} 5. a4 {[%emt 0:00:51]} Bf5 {[%emt 0:00:33]} 6. Ne5 {[%emt 0:01:36]} Na6 {[%emt 0:00:49]} 7. f3 {[%emt 0:04:05]} Nd7 {[%emt 0:02:27]} 8. Nxd7 {[%emt 0:02:37]} Qxd7 {[%emt 0:03:19]} 9. e4 {[%emt 0:01:04]} Bg6 {[%emt 0:00:17]} 10. Bxc4 {[%emt 0:00:09]} Nb4 {[%emt 0:01:34]} 11. Be3 {[%emt 0:02:16]} e6 {[%emt 0:01:46]} 12. a5 {[%emt 0:04:35]} Be7 {[%emt 0:09:29]} 13. Qb3 {[%emt 0:04:02]} O-O {[%emt 0:00:52]} 14. O-O {[%emt 0:00:35]} b5 {[%emt 0:01:48]} 15. axb6 {[%emt 0:09:57]} axb6 {[%emt 0:00:35]} 16. Rac1 {[%emt 0:01:41]} b5 {[%emt 0:03:32]} 17. Be2 {[%emt 0:00:11]} f5 {[%emt 0:12:27]} 18. Rfd1 {[%emt 0:06:19]} Bf7 {[%emt 0:10:12]} 19. e5 {[%emt 0:02:44]} Rfc8 {[%emt 0:05:40]} 20. f4 {[%emt 0:01:15]} Kf8 {[%emt 0:04:45]} 21. h3 {[%emt 0:13:02]} Nd5 {[%emt 0:07:26]} 22. Nxd5 {[%emt 0:00:30]} Qxd5 {[%emt 0:00:08]} 23. Qxd5 {[%emt 0:00:23]} cxd5 {[%emt 0:00:19]} 24. Rxc8+ {[%emt 0:06:41]} Rxc8 {[%emt 0:00:05]} 25. Ra1 {[%emt 0:00:16]} Be8 {[%emt 0:02:51]} 26. Bd3 {[%emt 0:00:30]} b4 {[%emt 0:03:30]} 27. Kf2 {[%emt 0:01:21]} Rb8 {[%emt 0:02:59]} 28. g4 {[%emt 0:04:52]} g6 {[%emt 0:01:05]} 29. Ra5 {[%emt 0:00:15]} Bd8 {[%emt 0:05:56]} 30. Ra6 {[%emt 0:01:36]} Rb6 {[%emt 0:02:52]} 31. Ra8 {[%emt 0:02:41]} Ke7 {[%emt 0:02:43]} 32. Ra7+ {[%emt 0:00:53]} Bd7 {[%emt 0:00:13]} 33. g5 {[%emt 0:00:32]} Ke8 {[%emt 0:02:11]} 34. Ke2 {[%emt 0:01:07]} Be7 {[%emt 0:00:47]} 35. Bd2 {[%emt 0:07:23]} Bb5 {[%emt 0:02:01]} 36. Ra8+ {[%emt 0:00:35]} Kf7 {[%emt 0:00:10]} 37. Ra7 {[%emt 0:02:34]} Ke8 {[%emt 0:00:45]} 38. Bxb5+ {[%emt 0:00:26]} Rxb5 {[%emt 0:00:08]} 39. Kd3 {[%emt 0:00:40]} Rb8 {[%emt 0:01:27]} 40. Kc2 {[%emt 0:02:10]} Rc8+ {[%emt 0:00:59]} 41. Kd3 {[%emt 0:00:07]} Rb8 {[%emt 0:01:44]} 42. Ra4 {[%emt 0:00:14]} Rb7 {[%emt 0:01:58]} 43. Kc2 {[%emt 0:01:09]} b3+ {[%emt 0:00:19]} 44. Kd3 {[%emt 0:00:25]} Kf7 {[%emt 0:02:35]} 45. Ra8 {[%emt 0:00:43]} Bf8 {[%emt 0:00:29]} 46. Ra4 {[%emt 0:02:06]} Be7 {[%emt 0:00:23]} 47. Ba5 {[%emt 0:01:32]} Ra7 {[%emt 0:02:18]} 48. Kc3 {[%emt 0:00:05]} Bd8 {[%emt 0:00:16]} 49. Kb4 {[%emt 0:00:15]} Rb7+ {[%emt 0:00:13]} 50. Ka3 {[%emt 0:00:20]} Be7+ {[%emt 0:01:40]} 51. Bb4 {[%emt 0:00:07]} Rxb4 {[%emt 0:00:44]} 52. Rxb4 {[%emt 0:00:06]} Ke8 {[%emt 0:00:03]} 53. Kxb3 {[%emt 0:00:16]} Bxb4 {[%emt 0:00:04]} 54. Kxb4 {[%emt 0:00:07]} Kd7 {[%emt 0:00:15]} 55. Kb5 {[%emt 0:00:38]} Kc7 {[%emt 0:00:10]} 56. Ka6 {[%emt 0:00:09]} Kc8 {[%emt 0:00:13]} 57. Kb6 {[%emt 0:00:26]} Kd7 {[%emt 0:00:14]} 58. Kb7 {[%emt 0:00:07]} Kd8 {[%emt 0:00:11]} 59. Kc6 {[%emt 0:00:05]} Ke7 {[%emt 0:00:06]} 60. Kc7 {[%emt 0:00:10]} 1-0

[Event "34rd NATO Championship 2024"]
[Site "Rhodes"]
[Date "2024.10.22"]
[Round "2.7"]
[White "Kedzierski, Slawomir"]
[Black "Pavlidis, Anastasios"]
[Result "0-1"]
[ECO "E92"]
[WhiteElo "2013"]
[BlackElo "2279"]
[Annotator "RC"]
[PlyCount "66"]
[EventDate "2024.09.18"]
[EventType "swiss"]
[EventCountry "GRE"]
[SourceTitle "playchess.com"]
[Source "ChessBase"]
[SourceQuality "1"]
[TimeControl "5400+30"]

1. d4 {[%emt 0:00:02]} Nf6 {[%emt 0:00:13]} 2. Nf3 {[%emt 0:00:27]} g6 {[%emt 0:00:24]} 3. c4 {[%emt 0:00:06]} Bg7 {[%emt 0:00:08]} 4. Nc3 {[%emt 0:00:05]} d6 {[%emt 0:00:29]} 5. e4 {[%emt 0:00:29]} O-O {[%emt 0:00:21]} 6. Be2 {[%emt 0:01:03]} e5 {[%emt 0:00:43]} 7. d5 {[%emt 0:01:40]} a5 {[%emt 0:02:07]} 8. O-O {[%emt 0:01:22]} Na6 {[%emt 0:00:39]} 9. Ne1 {[%emt 0:04:36]} Nc5 {[%emt 0:01:15]} 10. f3 {[%emt 0:00:35]} Ne8 {[%emt 0:09:53]} 11. Nd3 {[%emt 0:01:36]} b6 {[%emt 0:02:53]} 12. Be3 {[%emt 0:05:56]} f5 {[%emt 0:04:51]} 13. exf5 {[%emt 0:06:44]} gxf5 {[%emt 0:01:46]} 14. f4 {[%emt 0:09:36]} Ne4 {[%emt 0:12:06]} 15. Qc2 {[%emt 0:07:12]} Nxc3 {[%emt 0:07:19]} 16. bxc3 {[%emt 0:00:27]} Qf6 {[%emt 0:01:28]} 17. Rac1 {[%emt 0:03:37]} Qg6 {[%emt 0:04:06]} 18. Kh1 {[%emt 0:03:38]} Kh8 {[%emt 0:03:10]} 19. fxe5 {[%emt 0:07:47]} dxe5 {[%emt 0:01:02]} 20. c5 {[%emt 0:01:26]} f4 {[%emt 0:02:49]} 21. Bg1 {[%emt 0:02:42]} Bf5 {[%emt 0:04:05]} 22. Qd1 {[%emt 0:40:24]} bxc5 {[%emt 0:06:45]} 23. Nxc5 {[%emt 0:00:00]} Rd8 {[%emt 0:04:17]} 24. Bh5 {[%emt 0:00:00]} Qg5 {[%emt 0:03:47]} 25. c4 {[%emt 0:00:00]} Nf6 {[%emt 0:01:23]} 26. Bf3 {[%emt 0:00:00]} e4 {[%emt 0:02:59]} 27. Be2 {[%emt 0:00:00]} Rg8 {[%emt 0:02:47]} 28. Re1 {[%emt 0:00:00]} Bf8 {[%emt 0:08:56]} 29. Bf1 {[%emt 0:00:00]} e3 {[%emt 0:01:30]} 30. Nd3 {[%emt 0:00:00]} Re8 {[%emt 0:00:43]} 31. Qf3 {[%emt 0:00:00]} Be4 {[%emt 0:01:20]} 32. Qh3 {[%emt 0:00:00]} f3 {[%emt 0:01:45]} 33. Bxe3 {[%emt 0:03:39]} fxg2+ {[%emt 0:00:25]} 0-1

[Event "34rd NATO Championship 2024"]
[Site "Rhodes"]
[Date "2024.10.22"]
[Round "2.8"]
[White "Reizniece-Ozola, Dana"]
[Black "Cheung, Jan"]
[Result "1-0"]
[ECO "A14"]
[WhiteElo "2255"]
[BlackElo "2010"]
[Annotator "RC"]
[PlyCount "91"]
[EventDate "2024.09.18"]
[EventType "swiss"]
[EventCountry "GRE"]
[SourceTitle "playchess.com"]
[Source "ChessBase"]
[SourceQuality "1"]
[TimeControl "5400+30"]

1. Nf3 {[%emt 0:00:04]} Nf6 {[%emt 0:00:06]} 2. g3 {[%emt 0:00:08]} e6 {[%emt 0:00:34]} 3. Bg2 {[%emt 0:00:07]} d5 {[%emt 0:00:09]} 4. O-O {[%emt 0:00:12]} c5 {[%emt 0:01:09]} 5. c4 {[%emt 0:04:49]} Nc6 {[%emt 0:01:23]} 6. b3 {[%emt 0:00:25]} Be7 {[%emt 0:01:29]} 7. e3 {[%emt 0:00:56]} O-O {[%emt 0:00:46]} 8. d3 {[%emt 0:00:28]} e5 {[%emt 0:02:56]} 9. cxd5 {[%emt 0:05:39]} Nxd5 {[%emt 0:00:14]} 10. Bb2 {[%emt 0:01:30]} f6 {[%emt 0:01:25]} 11. d4 {[%emt 0:09:02]} exd4 {[%emt 0:12:19]} 12. exd4 {[%emt 0:02:06]} Be6 {[%emt 0:00:22]} 13. Re1 {[%emt 0:05:23]} Bf7 {[%emt 0:00:33]} 14. Nc3 {[%emt 0:03:14]} Nxc3 {[%emt 0:01:55]} 15. Bxc3 {[%emt 0:00:05]} Rc8 {[%emt 0:07:28]} 16. Re3 {[%emt 0:17:17]} b6 {[%emt 0:11:50]} 17. Qe2 {[%emt 0:27:29]} cxd4 {[%emt 0:10:24]} 18. Nxd4 {[%emt 0:01:29]} Nxd4 {[%emt 0:00:18]} 19. Bxd4 {[%emt 0:00:04]} Qxd4 {[%emt 0:05:53]} 20. Rd1 {[%emt 0:00:01]} Qc5 {[%emt 0:08:19]} 21. Rxe7 {[%emt 0:00:08]} Rfe8 {[%emt 0:04:06]} 22. Rdd7 {[%emt 0:05:58]} Rxe7 {[%emt 0:01:45]} 23. Rxe7 {[%emt 0:01:12]} a5 {[%emt 0:05:47]} 24. h4 {[%emt 0:00:48]} Kf8 {[%emt 0:03:06]} 25. Rb7 {[%emt 0:02:14]} Rc7 {[%emt 0:04:44]} 26. Qd3 {[%emt 0:03:31]} Rxb7 {[%emt 0:01:18]} 27. Qd8+ {[%emt 0:00:05]} Be8 {[%emt 0:00:06]} 28. Bxb7 {[%emt 0:00:06]} f5 {[%emt 0:06:28]} 29. h5 {[%emt 0:03:04]} f4 {[%emt 0:01:31]} 30. g4 {[%emt 0:00:25]} h6 {[%emt 0:02:15]} 31. Bd5 {[%emt 0:01:23]} b5 {[%emt 0:01:26]} 32. Kg2 {[%emt 0:00:37]} a4 {[%emt 0:01:26]} 33. Kf3 {[%emt 0:01:34]} axb3 {[%emt 0:01:14]} 34. axb3 {[%emt 0:00:21]} Qc3+ {[%emt 0:01:30]} 35. Kxf4 {[%emt 0:01:23]} Qf6+ {[%emt 0:00:48]} 36. Qxf6+ {[%emt 0:00:05]} gxf6 {[%emt 0:00:03]} 37. b4 {[%emt 0:00:52]} Bd7 {[%emt 0:00:32]} 38. f3 {[%emt 0:02:56]} Ke7 {[%emt 0:00:15]} 39. Be4 {[%emt 0:00:25]} Kd6 {[%emt 0:00:31]} 40. Bf5 {[%emt 0:00:22]} Be8 {[%emt 0:01:08]} 41. Ke4 {[%emt 0:00:32]} Bc6+ {[%emt 0:00:14]} 42. Ke3 {[%emt 0:00:05]} Be8 {[%emt 0:00:21]} 43. Kd4 {[%emt 0:00:15]} Bc6 {[%emt 0:01:11]} 44. f4 {[%emt 0:00:40]} Be8 {[%emt 0:00:32]} 45. g5 {[%emt 0:00:23]} fxg5 {[%emt 0:00:29]} 46. fxg5 {[%emt 0:00:04]} 1-0

[Event "34rd NATO Championship 2024"]
[Site "Rhodes"]
[Date "2024.10.22"]
[Round "2.9"]
[White "Michalski, Daniel"]
[Black "Andersen, Hans-Christoph"]
[Result "0-1"]
[ECO "A69"]
[WhiteElo "2011"]
[BlackElo "2229"]
[Annotator "RC"]
[PlyCount "44"]
[EventDate "2024.09.18"]
[EventType "swiss"]
[EventCountry "GRE"]
[SourceTitle "playchess.com"]
[Source "ChessBase"]
[SourceQuality "1"]
[TimeControl "5400+30"]

1. d4 {[%emt 0:00:03]} Nf6 {[%emt 0:00:50]} 2. c4 {[%emt 0:00:38]} g6 {[%emt 0:00:36]} 3. Nc3 {[%emt 0:01:29]} Bg7 {[%emt 0:00:23]} 4. e4 {[%emt 0:00:59]} d6 {[%emt 0:00:19]} 5. Be2 {[%emt 0:03:35]} O-O {[%emt 0:00:31]} 6. f4 {[%emt 0:00:48]} c5 {[%emt 0:02:31]} 7. d5 {[%emt 0:00:27]} e6 {[%emt 0:00:42]} 8. Nf3 {[%emt 0:00:09]} exd5 {[%emt 0:00:26]} 9. cxd5 {[%emt 0:01:27]} Nbd7 {[%emt 0:01:45]} 10. Nd2 {[%emt 0:09:26]} Re8 {[%emt 0:01:51]} 11. O-O {[%emt 0:01:44]} c4 {[%emt 0:01:26]} 12. e5 {[%emt 0:04:11]} dxe5 {[%emt 0:02:25]} 13. Nxc4 {[%emt 0:04:01]} Nb6 {[%emt 0:50:15]} 14. Qb3 {[%emt 0:41:10]} exf4 {[%emt 0:18:10]} 15. Nxb6 {[%emt 0:03:25]} Qxb6+ {[%emt 0:00:32]} 16. Qxb6 {[%emt 0:00:20]} axb6 {[%emt 0:00:05]} 17. Bxf4 {[%emt 0:11:49]} Nxd5 {[%emt 0:01:04]} 18. Bb5 {[%emt 0:00:10]} Rd8 {[%emt 0:09:27]} 19. Bg5 {[%emt 0:01:58]} Nxc3 {[%emt 0:00:22]} 20. Bc4 {[%emt 0:07:45]} Rd7 {[%emt 0:04:43]} 21. bxc3 {[%emt 0:00:15]} Rc7 {[%emt 0:00:50]} 22. Rad1 {[%emt 0:03:21]} Bg4 {[%emt 0:00:36]} 0-1

[Event "34rd NATO Championship 2024"]
[Site "Rhodes"]
[Date "2024.10.22"]
[Round "2.10"]
[White "Rahmanidis, Petros"]
[Black "Pirs, Matjaz"]
[Result "1-0"]
[ECO "A14"]
[WhiteElo "2219"]
[BlackElo "2203"]
[Annotator "RC"]
[PlyCount "71"]
[EventDate "2024.09.18"]
[EventType "swiss"]
[EventCountry "GRE"]
[SourceTitle "playchess.com"]
[Source "ChessBase"]
[SourceQuality "1"]
[TimeControl "5400+30"]

1. Nf3 {[%emt 0:00:08]} d5 {[%emt 0:00:23]} 2. g3 {[%emt 0:00:09]} Nf6 {[%emt 0:00:34]} 3. Bg2 {[%emt 0:00:12]} e6 {[%emt 0:01:17]} 4. O-O {[%emt 0:00:47]} Be7 {[%emt 0:00:20]} 5. c4 {[%emt 0:00:14]} d4 {[%emt 0:01:51]} 6. e3 {[%emt 0:00:43]} c5 {[%emt 0:02:05]} 7. exd4 {[%emt 0:01:00]} cxd4 {[%emt 0:00:09]} 8. d3 {[%emt 0:00:53]} Nc6 {[%emt 0:04:07]} 9. Bg5 {[%emt 0:02:01]} O-O {[%emt 0:05:48]} 10. Re1 {[%emt 0:14:52]} Re8 {[%emt 0:08:37]} 11. Nbd2 {[%emt 0:12:45]} h6 {[%emt 0:09:21]} 12. Bxf6 {[%emt 0:00:18]} Bxf6 {[%emt 0:00:08]} 13. a3 {[%emt 0:05:34]} a5 {[%emt 0:03:22]} 14. c5 {[%emt 0:01:21]} Be7 {[%emt 0:08:26]} 15. Rc1 {[%emt 0:03:36]} f6 {[%emt 0:23:43]} 16. Nh4 {[%emt 0:16:37]} Qc7 {[%emt 0:13:28]} 17. Ng6 {[%emt 0:21:02]} Bd7 {[%emt 0:04:35]} 18. Nxe7+ {[%emt 0:07:33]} Rxe7 {[%emt 0:03:09]} 19. Nc4 {[%emt 0:00:17]} e5 {[%emt 0:03:00]} 20. Nb6 {[%emt 0:00:30]} Rae8 {[%emt 0:01:57]} 21. Nd5 {[%emt 0:00:13]} Qc8 {[%emt 0:00:08]} 22. Nxe7+ {[%emt 0:00:13]} Rxe7 {[%emt 0:00:06]} 23. b4 {[%emt 0:01:19]} axb4 {[%emt 0:00:45]} 24. axb4 {[%emt 0:00:09]} Be6 {[%emt 0:01:28]} 25. Qa4 {[%emt 0:01:24]} Rc7 {[%emt 0:01:01]} 26. b5 {[%emt 0:04:10]} Ne7 {[%emt 0:00:19]} 27. c6 {[%emt 0:00:40]} bxc6 {[%emt 0:00:14]} 28. bxc6 {[%emt 0:00:11]} Bd5 {[%emt 0:00:44]} 29. Bxd5+ {[%emt 0:00:52]} Nxd5 {[%emt 0:00:03]} 30. Qb3 {[%emt 0:01:55]} Qe6 {[%emt 0:00:14]} 31. Rc5 {[%emt 0:01:44]} Nf4 {[%emt 0:00:06]} 32. Rb1 {[%emt 0:01:11]} Qxb3 {[%emt 0:01:03]} 33. Rxb3 {[%emt 0:00:08]} Ne6 {[%emt 0:00:11]} 34. Rb7 {[%emt 0:00:41]} Rc8 {[%emt 0:02:51]} 35. c7 {[%emt 0:00:46]} Kf7 {[%emt 0:00:26]} 36. Rb8 {[%emt 0:00:29]} 1-0

[Event "34rd NATO Championship 2024"]
[Site "Rhodes"]
[Date "2024.10.22"]
[Round "2.11"]
[White "Tocco, Paolo"]
[Black "Pietruszewski, Marcin"]
[Result "1-0"]
[ECO "D02"]
[WhiteElo "2010"]
[BlackElo "2174"]
[Annotator "RC"]
[PlyCount "101"]
[EventDate "2024.09.18"]
[EventType "swiss"]
[EventCountry "GRE"]
[SourceTitle "playchess.com"]
[Source "ChessBase"]
[SourceQuality "1"]
[TimeControl "5400+30"]

1. d4 {[%emt 0:00:19]} Nf6 {[%emt 0:00:08]} 2. Nc3 {[%emt 0:00:05]} d5 {[%emt 0:00:51]} 3. Bf4 {[%emt 0:00:06]} Bf5 {[%emt 0:04:09]} 4. e3 {[%emt 0:00:19]} e6 {[%emt 0:01:40]} 5. Nf3 {[%emt 0:00:17]} Bb4 {[%emt 0:09:15]} 6. Bd3 {[%emt 0:06:41]} Ne4 {[%emt 0:03:28]} 7. O-O {[%emt 0:03:03]} Bxc3 {[%emt 0:15:36]} 8. bxc3 {[%emt 0:01:48]} O-O {[%emt 0:01:22]} 9. c4 dxc4 {[%emt 0:14:49]} 10. Bxc4 {[%emt 0:06:05]} Nd7 {[%emt 0:02:11]} 11. Nd2 {[%emt 0:11:29]} Nxd2 {[%emt 0:23:27]} 12. Qxd2 {[%emt 0:00:06]} c5 {[%emt 0:00:07]} 13. Bd6 {[%emt 0:16:51]} Re8 {[%emt 0:00:10]} 14. Bb5 {[%emt 0:00:15]} cxd4 {[%emt 0:00:50]} 15. Qxd4 {[%emt 0:05:11]} a6 {[%emt 0:00:19]} 16. Bd3 {[%emt 0:03:38]} Qc8 {[%emt 0:12:13]} 17. e4 {[%emt 0:42:47]} Bg6 {[%emt 0:00:57]} 18. e5 {[%emt 0:00:30]} Qc6 19. Bxg6 {[%emt 0:00:00]} hxg6 {[%emt 0:00:27]} 20. c4 {[%emt 0:01:00]} Rec8 {[%emt 0:07:03]} 21. Rac1 {[%emt 0:00:00]} Qa4 {[%emt 0:00:36]} 22. Rc3 {[%emt 0:00:00]} Qxa2 {[%emt 0:01:03]} 23. Qh4 {[%emt 0:00:00]} f5 {[%emt 0:00:44]} 24. Qe7 {[%emt 0:00:00]} Nf8 {[%emt 0:00:12]} 25. Qxb7 {[%emt 0:00:00]} Qa4 {[%emt 0:00:45]} 26. c5 {[%emt 0:00:00]} Qc6 {[%emt 0:00:30]} 27. Rb1 {[%emt 0:00:00]} a5 {[%emt 0:00:32]} 28. Qxc6 {[%emt 0:00:00]} Rxc6 {[%emt 0:00:01]} 29. Rb6 {[%emt 0:04:30]} Rac8 {[%emt 0:00:59]} 30. Rxc6 {[%emt 0:00:00]} Rxc6 {[%emt 0:00:01]} 31. Ra3 {[%emt 0:00:00]} Ra6 {[%emt 0:00:55]} 32. Kf1 {[%emt 0:00:00]} Nd7 {[%emt 0:00:37]} 33. Ke2 {[%emt 0:00:00]} Kf7 {[%emt 0:00:31]} 34. Kd3 {[%emt 0:00:00]} Ke8 {[%emt 0:00:29]} 35. Kc4 {[%emt 0:00:00]} Ra8 {[%emt 0:00:32]} 36. Kb5 {[%emt 0:00:00]} Kd8 {[%emt 0:00:29]} 37. Rxa5 {[%emt 0:00:00]} Rxa5+ {[%emt 0:00:29]} 38. Kxa5 {[%emt 0:00:00]} Kc8 {[%emt 0:00:29]} 39. Kb5 {[%emt 0:00:00]} g5 {[%emt 0:00:00]} 40. c6 {[%emt 0:00:00]} Nb8 {[%emt 0:00:00]} 41. Kb6 {[%emt 0:06:00]} g4 42. Bxb8 {[%emt 0:00:00]} Kxb8 {[%emt 0:00:27]} 43. c7+ {[%emt 0:00:00]} Kc8 {[%emt 0:00:04]} 44. Kc6 {[%emt 0:00:00]} f4 {[%emt 0:00:44]} 45. Kd6 {[%emt 0:00:00]} f3 {[%emt 0:00:14]} 46. gxf3 gxf3 47. h4 {[%emt 0:00:00]} g6 {[%emt 0:00:16]} 48. Kxe6 {[%emt 0:00:00]} Kxc7 {[%emt 0:03:49]} 49. Kf7 {[%emt 0:00:00]} Kd7 {[%emt 0:00:00]} 50. e6+ {[%emt 0:00:00]} Kd6 {[%emt 0:00:00]} 51. e7 {[%emt 0:00:00]} 1-0

[Event "34rd NATO Championship 2024"]
[Site "Rhodes"]
[Date "2024.10.22"]
[Round "2.12"]
[White "Pavlidou, Ekaterini"]
[Black "Koops, Janis"]
[Result "1-0"]
[ECO "D45"]
[WhiteElo "2153"]
[BlackElo "1990"]
[Annotator "RC"]
[PlyCount "71"]
[EventDate "2024.09.18"]
[EventType "swiss"]
[EventCountry "GRE"]
[SourceTitle "playchess.com"]
[Source "ChessBase"]
[SourceQuality "1"]
[TimeControl "5400+30"]

1. d4 {[%emt 0:00:24]} d5 {[%emt 0:00:09]} 2. c4 {[%emt 0:00:11]} e6 {[%emt 0:01:49]} 3. Nc3 {[%emt 0:00:34]} c6 {[%emt 0:00:24]} 4. e3 {[%emt 0:05:45]} Nf6 {[%emt 0:02:00]} 5. Nf3 {[%emt 0:02:13]} Bb4 {[%emt 0:02:28]} 6. Bd2 {[%emt 0:03:01]} O-O {[%emt 0:01:19]} 7. Qc2 {[%emt 0:03:33]} Bxc3 {[%emt 0:03:39]} 8. Bxc3 {[%emt 0:00:14]} Ne4 {[%emt 0:00:16]} 9. Bd3 {[%emt 0:02:27]} f5 {[%emt 0:00:17]} 10. O-O-O {[%emt 0:03:49]} a5 {[%emt 0:16:34]} 11. Be1 {[%emt 0:07:08]} b5 {[%emt 0:04:36]} 12. c5 {[%emt 0:02:05]} Nd7 {[%emt 0:05:10]} 13. h4 {[%emt 1:05:36]} b4 {[%emt 0:03:29]} 14. Qe2 {[%emt 0:00:00]} Qe7 {[%emt 0:05:00]} 15. Ng1 {[%emt 0:00:00]} e5 {[%emt 0:05:38]} 16. f3 {[%emt 0:00:00]} Nexc5 {[%emt 0:04:44]} 17. dxc5 {[%emt 0:00:00]} e4 {[%emt 0:00:28]} 18. Bc2 {[%emt 0:00:00]} Nxc5 {[%emt 0:01:24]} 19. Qd2 {[%emt 0:00:00]} b3 {[%emt 0:01:22]} 20. axb3 {[%emt 0:00:00]} Ba6 {[%emt 0:00:20]} 21. Qd4 {[%emt 0:00:00]} Rfb8 {[%emt 0:03:07]} 22. Bc3 {[%emt 0:00:00]} Bd3 {[%emt 0:03:25]} 23. Nh3 {[%emt 0:00:00]} Rxb3 {[%emt 0:04:32]} 24. Nf4 {[%emt 0:00:00]} a4 {[%emt 0:03:01]} 25. Nxd5 {[%emt 0:00:00]} Qf8 {[%emt 0:00:59]} 26. fxe4 {[%emt 0:00:00]} Bxe4 {[%emt 0:00:36]} 27. Nc7 {[%emt 0:00:00]} Rab8 {[%emt 0:05:18]} 28. Qc4+ {[%emt 0:00:00]} Kh8 {[%emt 0:01:10]} 29. Bd4 {[%emt 0:00:00]} R3b4 {[%emt 0:07:56]} 30. Qxc5 {[%emt 0:02:04]} Qf7 {[%emt 0:02:52]} 31. Bc3 {[%emt 0:02:00]} Rc4 {[%emt 0:02:02]} 32. Qe5 {[%emt 0:00:19]} a3 {[%emt 0:03:04]} 33. bxa3 {[%emt 0:01:49]} Bxc2 {[%emt 0:01:05]} 34. Kxc2 {[%emt 0:01:57]} Rxc3+ {[%emt 0:00:10]} 35. Kxc3 {[%emt 0:00:44]} Qa2 {[%emt 0:04:08]} 36. Nb5 {[%emt 0:00:16]} 1-0

[Event "34rd NATO Championship 2024"]
[Site "Rhodes"]
[Date "2024.10.22"]
[Round "2.13"]
[White "Pazeriene, Diana"]
[Black "Bohn, Ulrich"]
[Result "0-1"]
[ECO "A58"]
[WhiteElo "1993"]
[BlackElo "2149"]
[Annotator "RC"]
[PlyCount "64"]
[EventDate "2024.09.18"]
[EventType "swiss"]
[EventCountry "GRE"]
[SourceTitle "playchess.com"]
[Source "ChessBase"]
[SourceQuality "1"]
[TimeControl "5400+30"]

1. d4 {[%emt 0:00:05]} Nf6 {[%emt 0:00:10]} 2. c4 {[%emt 0:00:24]} c5 {[%emt 0:00:07]} 3. d5 {[%emt 0:00:31]} b5 {[%emt 0:00:07]} 4. cxb5 {[%emt 0:00:24]} a6 {[%emt 0:00:09]} 5. bxa6 {[%emt 0:00:29]} g6 {[%emt 0:00:15]} 6. Nc3 {[%emt 0:00:26]} Bg7 {[%emt 0:00:24]} 7. Nf3 {[%emt 0:00:26]} O-O {[%emt 0:00:23]} 8. e4 {[%emt 0:01:28]} Qa5 {[%emt 0:05:10]} 9. Bd3 {[%emt 0:04:07]} Bxa6 {[%emt 0:02:20]} 10. O-O {[%emt 0:01:56]} d6 {[%emt 0:00:14]} 11. Re1 {[%emt 0:03:04]} Bxd3 {[%emt 0:10:32]} 12. Qxd3 {[%emt 0:01:17]} Na6 {[%emt 0:00:13]} 13. Re2 {[%emt 0:10:38]} Nb4 {[%emt 0:04:01]} 14. Qd1 {[%emt 0:05:27]} Qa6 {[%emt 0:08:05]} 15. Bg5 {[%emt 0:06:22]} Ra7 {[%emt 0:34:58]} 16. a3 {[%emt 0:12:53]} Ng4 {[%emt 0:03:27]} 17. h3 {[%emt 0:03:52]} Ne5 {[%emt 0:00:28]} 18. Nxe5 {[%emt 0:02:19]} Bxe5 {[%emt 0:00:06]} 19. Bh6 {[%emt 0:01:35]} Rb8 {[%emt 0:00:31]} 20. Rc1 {[%emt 0:02:01]} Nd3 {[%emt 0:05:47]} 21. Rcc2 {[%emt 0:01:06]} Rab7 {[%emt 0:00:25]} 22. Bc1 {[%emt 0:01:18]} Nxc1 {[%emt 0:01:02]} 23. Rxc1 {[%emt 0:01:34]} Rxb2 {[%emt 0:00:19]} 24. Re3 {[%emt 0:05:18]} Bf4 {[%emt 0:04:14]} 25. Rf3 {[%emt 0:00:13]} Bxc1 {[%emt 0:01:10]} 26. Qxc1 {[%emt 0:00:02]} Qc4 {[%emt 0:02:22]} 27. Qf4 {[%emt 0:02:49]} f6 {[%emt 0:00:57]} 28. Qg4 {[%emt 0:02:10]} Qd4 {[%emt 0:06:01]} 29. a4 {[%emt 0:03:11]} Qe5 {[%emt 0:00:35]} 30. g3 {[%emt 0:00:37]} R2b3 {[%emt 0:02:30]} 31. Ne2 {[%emt 0:01:52]} Rxf3 {[%emt 0:00:28]} 32. Qxf3 {[%emt 0:00:01]} Rb4 {[%emt 0:00:44]} 0-1

[Event "34rd NATO Championship 2024"]
[Site "Rhodes"]
[Date "2024.10.22"]
[Round "2.14"]
[White "Lebrun, Roger"]
[Black "Casteleijn, Diederick"]
[Result "0-1"]
[ECO "B21"]
[WhiteElo "1984"]
[BlackElo "2128"]
[Annotator "RC"]
[PlyCount "54"]
[EventDate "2024.09.18"]
[EventType "swiss"]
[EventCountry "GRE"]
[SourceTitle "playchess.com"]
[Source "ChessBase"]
[SourceQuality "1"]
[TimeControl "5400+30"]

1. e4 {[%emt 0:00:04]} c5 {[%emt 0:00:15]} 2. d4 {[%emt 0:01:14]} cxd4 {[%emt 0:00:42]} 3. c3 {[%emt 0:00:05]} dxc3 {[%emt 0:00:20]} 4. Nxc3 {[%emt 0:00:07]} Nc6 {[%emt 0:00:15]} 5. Nf3 {[%emt 0:00:24]} e6 {[%emt 0:00:50]} 6. Bc4 {[%emt 0:05:51]} a6 {[%emt 0:00:41]} 7. a4 {[%emt 0:03:08]} Nge7 {[%emt 0:03:48]} 8. Bg5 {[%emt 0:00:43]} f6 {[%emt 0:01:55]} 9. Bh4 {[%emt 0:05:11]} Ng6 {[%emt 0:01:20]} 10. Bg3 {[%emt 0:00:22]} Be7 {[%emt 0:03:51]} 11. O-O {[%emt 0:01:30]} O-O {[%emt 0:00:31]} 12. Rc1 {[%emt 0:06:58]} Qa5 {[%emt 1:22:02]} 13. Qe2 {[%emt 0:09:53]} Nge5 {[%emt 0:00:00]} 14. Rfd1 {[%emt 0:18:06]} Bc5 {[%emt 0:01:00]} 15. Ba2 {[%emt 0:05:17]} Ba7 {[%emt 0:00:00]} 16. h3 {[%emt 0:15:33]} Kh8 {[%emt 0:00:00]} 17. Kh1 {[%emt 0:00:41]} b5 {[%emt 0:00:00]} 18. axb5 {[%emt 0:16:57]} axb5 {[%emt 0:00:00]} 19. Bb1 {[%emt 0:04:48]} b4 {[%emt 0:00:00]} 20. Na2 {[%emt 0:01:51]} b3 {[%emt 0:00:00]} 21. Nc3 {[%emt 0:00:16]} Ba6 {[%emt 0:00:00]} 22. Nxe5 {[%emt 0:01:57]} Bxe2 {[%emt 0:00:00]} 23. Nxc6 {[%emt 0:00:02]} dxc6 {[%emt 0:00:00]} 24. Nxe2 {[%emt 0:00:02]} Rfd8 {[%emt 0:00:00]} 25. Nc3 {[%emt 0:00:35]} Bd4 {[%emt 0:00:00]} 26. Rd3 {[%emt 0:00:14]} e5 {[%emt 0:00:00]} 27. f3 {[%emt 0:00:03]} Qa1 {[%emt 0:00:00]} 0-1